{"text_format":"1","workbook":"xlsx","n_sheets":3,"sheets":["たけパパ式改","Sheet2","Sheet3"],"not_rendered":{"charts":0,"images":0,"macros":0,"external_links":0,"defined_names":1,"comments":0,"pivot_tables":0},"unopened":[],"bounds":{"document_bytes":16777216,"sheet_cells":100000,"rows_first":2000,"rows_last":500,"rows_between":2000,"halvings":0,"cell_chars":16384,"cell_head_chars":4096},"cells_cut":0,"cells_raw":0,"read":"whole","date_system":"1900"}

{"sheet":"たけパパ式改","index":0,"n_rows":300,"n_cols":25,"rows_kept":300,"cut":false,"hidden":false,"merged":[[0,0,0,3],[0,11,0,14],[10,1,10,2],[10,3,10,4],[10,5,11,5],[10,6,11,6]]}
["2009.11～",null,null,null,null,null,null,null,null,null,null,"トレード履歴"]
[]
["買い／売り勝率"]
[null,"買い","売り"]
["回数",{"$f":"SUM(Q6:Q300)","v":38},{"$f":"SUM(R6:R300)","v":28},null,null,null,null,null,null,null,null,"No.",null,"日付","曜日","○×","買い","売り",null,null,null,"買い","売り",null,"○"]
["勝",{"$f":"SUM(COUNTIF($T$6:$T$300,\"○_1\"))+SUM(COUNTIF($T$6:$T$300,\"○○_1\"))+SUM(COUNTIF($T$6:$T$300,\"○×_1\"))","v":28},{"$f":"SUM(COUNTIF($U$6:$U$300,\"○_1\"))+SUM(COUNTIF($U$6:$U$300,\"○○_1\"))+SUM(COUNTIF($U$6:$U$300,\"×○_1\"))","v":19},null,null,null,null,null,null,null,null,1,"11月",2,"月","○",1,null,{"$f":"O6&\"_\"&P6","v":"月_○"},{"$f":"P6&\"_\"&Q6","v":"○_1"},{"$f":"P6&\"_\"&R6","v":"○_"},{"$f":"O6&\"_\"&P6&\"_\"&Q6","v":"月_○_1"},{"$f":"O6&\"_\"&P6&\"_\"&R6","v":"月_○_"},null,"×"]
["負",{"$f":"SUM(COUNTIF($T$6:$T$300,\"×_1\"))+SUM(COUNTIF($T$6:$T$300,\"××_1\"))+SUM(COUNTIF($T$6:$T$300,\"×○_1\"))","v":10},{"$f":"SUM(COUNTIF($U$6:$U$300,\"×_1\"))+SUM(COUNTIF($U$6:$U$300,\"××_1\"))+SUM(COUNTIF($U$6:$U$300,\"○×_1\"))","v":9},null,null,null,null,null,null,null,null,2,null,3,"火","×",1,null,{"$f":"O7&\"_\"&P7","v":"火_×"},{"$f":"P7&\"_\"&Q7","v":"×_1"},{"$f":"P7&\"_\"&R7","v":"×_"},{"$f":"O7&\"_\"&P7&\"_\"&Q7","v":"火_×_1"},{"$f":"O7&\"_\"&P7&\"_\"&R7","v":"火_×_"},null,"○○"]
["勝率",{"$f":"B6/B5","v":0.73684210526315785},{"$f":"C6/C5","v":0.6785714285714286},null,null,null,null,null,null,null,null,3,null,4,"水","×",1,null,"水_×","×_1","×_","水_×_1","水_×_",null,"××"]
[null,null,null,null,null,null,null,null,null,null,null,4,null,5,"木",null,null,null,"木_","_","_","木__","木__",null,"○×"]
["曜日別買い／売り勝率",null,null,null,null,null,null,null,null,null,null,5,null,6,"金",null,null,null,"金_","_","_","金__","金__",null,"×○"]
[null,"買い",null,"売り",null,"買い勝率","売り勝率",null,null,null,null,6,null,9,"月","×",null,1,"月_×","×_","×_1","月_×_","月_×_1",null,"不成立"]
[null,"勝","負","勝","負",null,null,null,null,null,null,7,null,10,"火",null,null,null,"火_","_","_","火__","火__"]
["月",{"$f":"SUM(COUNTIF($V$6:$V$300,\"月_○_1\"))+SUM(COUNTIF($V$6:$V$300,\"月_○○_1\"))+SUM(COUNTIF($V$6:$V$300,\"月_○×_1\"))","v":5},{"$f":"SUM(COUNTIF($V$6:$V$300,\"月_×_1\"))+SUM(COUNTIF($V$6:$V$300,\"月_××_1\"))+SUM(COUNTIF($V$6:$V$300,\"月_×○_1\"))","v":2},{"$f":"SUM(COUNTIF($W$6:$W$300,\"月_○_1\"))+SUM(COUNTIF($W$6:$W$300,\"月_○○_1\"))+SUM(COUNTIF($W$6:$W$300,\"月_×○_1\"))","v":2},{"$f":"SUM(COUNTIF($W$6:$W$300,\"月_×_1\"))+SUM(COUNTIF($W$6:$W$300,\"月_××_1\"))+SUM(COUNTIF($W$6:$W$300,\"月_○×_1\"))","v":6},{"$f":"B13/(B13+C13)","v":0.7142857142857143},{"$f":"D13/(D13+E13)","v":0.25},null,null,null,null,8,null,11,"水",null,null,null,"水_","_","_","水__","水__"]
["火",{"$f":"SUM(COUNTIF($V$6:$V$300,\"火_○_1\"))+SUM(COUNTIF($V$6:$V$300,\"火_○○_1\"))+SUM(COUNTIF($V$6:$V$300,\"火_○×_1\"))","v":5},{"$f":"SUM(COUNTIF($V$6:$V$300,\"火_×_1\"))+SUM(COUNTIF($V$6:$V$300,\"火_××_1\"))+SUM(COUNTIF($V$6:$V$300,\"火_×○_1\"))","v":3},{"$f":"SUM(COUNTIF($W$6:$W$300,\"火_○_1\"))+SUM(COUNTIF($W$6:$W$300,\"火_○○_1\"))+SUM(COUNTIF($W$6:$W$300,\"火_×○_1\"))","v":6},{"$f":"SUM(COUNTIF($W$6:$W$300,\"火_×_1\"))+SUM(COUNTIF($W$6:$W$300,\"火_××_1\"))+SUM(COUNTIF($W$6:$W$300,\"火_○×_1\"))","v":2},0.625,0.75,null,null,null,null,9,null,12,"木","○",1,null,"木_○","○_1","○_","木_○_1","木_○_"]
["水",{"$f":"SUM(COUNTIF($V$6:$V$300,\"水_○_1\"))+SUM(COUNTIF($V$6:$V$300,\"水_○○_1\"))+SUM(COUNTIF($V$6:$V$300,\"水_○×_1\"))","v":6},{"$f":"SUM(COUNTIF($V$6:$V$300,\"水_×_1\"))+SUM(COUNTIF($V$6:$V$300,\"水_××_1\"))+SUM(COUNTIF($V$6:$V$300,\"水_×○_1\"))","v":2},{"$f":"SUM(COUNTIF($W$6:$W$300,\"水_○_1\"))+SUM(COUNTIF($W$6:$W$300,\"水_○○_1\"))+SUM(COUNTIF($W$6:$W$300,\"水_×○_1\"))","v":4},{"$f":"SUM(COUNTIF($W$6:$W$300,\"水_×_1\"))+SUM(COUNTIF($W$6:$W$300,\"水_××_1\"))+SUM(COUNTIF($W$6:$W$300,\"水_○×_1\"))","v":1},0.75,0.8,null,null,null,null,10,null,13,"金","○",null,1,"金_○","○_","○_1","金_○_","金_○_1"]
["木",{"$f":"SUM(COUNTIF($V$6:$V$300,\"木_○_1\"))+SUM(COUNTIF($V$6:$V$300,\"木_○○_1\"))+SUM(COUNTIF($V$6:$V$300,\"木_○×_1\"))","v":7},{"$f":"SUM(COUNTIF($V$6:$V$300,\"木_×_1\"))+SUM(COUNTIF($V$6:$V$300,\"木_××_1\"))+SUM(COUNTIF($V$6:$V$300,\"木_×○_1\"))","v":1},{"$f":"SUM(COUNTIF($W$6:$W$300,\"木_○_1\"))+SUM(COUNTIF($W$6:$W$300,\"木_○○_1\"))+SUM(COUNTIF($W$6:$W$300,\"木_×○_1\"))","v":6},{"$f":"SUM(COUNTIF($W$6:$W$300,\"木_×_1\"))+SUM(COUNTIF($W$6:$W$300,\"木_××_1\"))+SUM(COUNTIF($W$6:$W$300,\"木_○×_1\"))","v":0},0.875,1,null,null,null,null,11,null,16,"月","○",null,1,"月_○","○_","○_1","月_○_","月_○_1"]
["金",{"$f":"SUM(COUNTIF($V$6:$V$300,\"金_○_1\"))+SUM(COUNTIF($V$6:$V$300,\"金_○○_1\"))+SUM(COUNTIF($V$6:$V$300,\"金_○×_1\"))","v":5},{"$f":"SUM(COUNTIF($V$6:$V$300,\"金_×_1\"))+SUM(COUNTIF($V$6:$V$300,\"金_××_1\"))+SUM(COUNTIF($V$6:$V$300,\"金_×○_1\"))","v":2},{"$f":"SUM(COUNTIF($W$6:$W$300,\"金_○_1\"))+SUM(COUNTIF($W$6:$W$300,\"金_○○_1\"))+SUM(COUNTIF($W$6:$W$300,\"金_×○_1\"))","v":1},{"$f":"SUM(COUNTIF($W$6:$W$300,\"金_×_1\"))+SUM(COUNTIF($W$6:$W$300,\"金_××_1\"))+SUM(COUNTIF($W$6:$W$300,\"金_○×_1\"))","v":0},0.7142857142857143,1,null,null,null,null,12,null,17,"火","○",1,null,"火_○","○_1","○_","火_○_1","火_○_"]
["合計",{"$f":"SUM(B13:B17)","v":28},{"$f":"SUM(C13:C17)","v":10},{"$f":"SUM(D13:D17)","v":19},{"$f":"SUM(E13:E17)","v":9},0.73684210526315785,0.6785714285714286,null,null,null,null,13,null,18,"水","○",1,null,"水_○","○_1","○_","水_○_1","水_○_"]
[null,null,null,null,null,null,null,null,null,null,null,14,null,19,"木","○",null,1,"木_○","○_","○_1","木_○_","木_○_1"]
["曜日別勝率（○○は勝×2、××は負×2、○×(×○)は勝負それぞれｘ１で計算）",null,null,null,null,null,null,null,null,null,null,15,null,20,"金","○",1,null,"金_○","○_1","○_","金_○_1","金_○_"]
[null,"○","○○","×","××","○×(×○)","ﾄﾚｰﾄﾞ日数","勝","負","曜日別勝率",null,16,null,23,"月","×",null,1,"月_×","×_","×_1","月_×_","月_×_1"]
["月",{"$f":"SUM(COUNTIF(S6:S128,\"月_○\"))","v":5},{"$f":"SUM(COUNTIF($S$6:$S$128,\"月_○○\"))","v":0},{"$f":"SUM(COUNTIF($S$6:$S$128,\"月_×\"))","v":6},{"$f":"SUM(COUNTIF($S$6:$S$128,\"月_××\"))","v":0},{"$f":"SUM(COUNTIF($S$6:$S$128,\"月_○×\"))+SUM(COUNTIF($S$6:$S$128,\"月_×○\"))","v":3},{"$f":"SUM(B22:F22)","v":14},{"$f":"B22+(C22*2)+F22","v":8},{"$f":"D22+(E22*2)+F22","v":9},{"$f":"H22/(H22+I22)","v":0.47058823529411764},null,17,null,24,"火","○",null,1,"火_○","○_","○_1","火_○_","火_○_1"]
["火",{"$f":"SUM(COUNTIF(S6:S128,\"火_○\"))","v":10},{"$f":"SUM(COUNTIF($S$6:$S$128,\"火_○○\"))","v":0},{"$f":"SUM(COUNTIF($S$6:$S$128,\"火_×\"))","v":2},{"$f":"SUM(COUNTIF($S$6:$S$128,\"火_××\"))","v":1},{"$f":"SUM(COUNTIF($S$6:$S$128,\"火_○×\"))+SUM(COUNTIF($S$6:$S$128,\"火_×○\"))","v":1},{"$f":"SUM(B23:F23)","v":14},{"$f":"B23+(C23*2)+F23","v":11},{"$f":"D23+(E23*2)+F23","v":5},0.6875,null,18,null,25,"水","○",null,1,"水_○","○_","○_1","水_○_","水_○_1"]
["水",{"$f":"SUM(COUNTIF(S6:S128,\"水_○\"))","v":10},{"$f":"SUM(COUNTIF($S$6:$S$128,\"水_○○\"))","v":0},{"$f":"SUM(COUNTIF($S$6:$S$128,\"水_×\"))","v":3},{"$f":"SUM(COUNTIF($S$6:$S$128,\"水_××\"))","v":0},{"$f":"SUM(COUNTIF($S$6:$S$128,\"水_○×\"))+SUM(COUNTIF($S$6:$S$128,\"水_×○\"))","v":0},{"$f":"SUM(B24:F24)","v":13},{"$f":"B24+(C24*2)+F24","v":10},{"$f":"D24+(E24*2)+F24","v":3},0.76923076923076927,null,19,null,26,"木","○",null,1,"木_○","○_","○_1","木_○_","木_○_1"]
["木",{"$f":"SUM(COUNTIF(S6:S128,\"木_○\"))","v":13},{"$f":"SUM(COUNTIF($S$6:$S$128,\"木_○○\"))","v":0},{"$f":"SUM(COUNTIF($S$6:$S$128,\"木_×\"))","v":1},{"$f":"SUM(COUNTIF($S$6:$S$128,\"木_××\"))","v":0},{"$f":"SUM(COUNTIF($S$6:$S$128,\"木_○×\"))+SUM(COUNTIF($S$6:$S$128,\"木_×○\"))","v":0},{"$f":"SUM(B25:F25)","v":14},{"$f":"B25+(C25*2)+F25","v":13},{"$f":"D25+(E25*2)+F25","v":1},0.9285714285714286,null,20,null,27,"金","○",1,null,"金_○","○_1","○_","金_○_1","金_○_"]
["金",{"$f":"SUM(COUNTIF(S6:S128,\"金_○\"))","v":6},{"$f":"SUM(COUNTIF($S$6:$S$128,\"金_○○\"))","v":0},{"$f":"SUM(COUNTIF($S$6:$S$128,\"金_×\"))","v":2},{"$f":"SUM(COUNTIF($S$6:$S$128,\"金_××\"))","v":0},{"$f":"SUM(COUNTIF($S$6:$S$128,\"金_○×\"))+SUM(COUNTIF($S$6:$S$128,\"金_×○\"))","v":0},{"$f":"SUM(B26:F26)","v":8},{"$f":"B26+(C26*2)+F26","v":6},{"$f":"D26+(E26*2)+F26","v":2},0.75,null,21,null,30,"月","○",1,null,"月_○","○_1","○_","月_○_1","月_○_"]
["合計",{"$f":"SUM(B22:B26)","v":44},1,{"$f":"SUM(D22:D26)","v":14},1,4,63,48,20,0.70588235294117652,null,22,"12月",1,"火","○×",1,1,"火_○×","○×_1","○×_1","火_○×_1","火_○×_1"]
[null,null,null,null,null,null,null,null,null,null,null,23,null,2,"水","○",null,1,"水_○","○_","○_1","水_○_","水_○_1"]
[null,null,null,null,null,null,null,null,null,null,null,24,null,3,"木","○",1,null,"木_○","○_1","○_","木_○_1","木_○_"]
[null,null,null,null,null,null,null,null,null,null,null,25,null,4,"金","○",1,null,"金_○","○_1","○_","金_○_1","金_○_"]
[null,null,null,null,null,null,null,null,null,null,null,26,null,7,"月","○×",1,1,"月_○×","○×_1","○×_1","月_○×_1","月_○×_1"]
[null,null,null,null,null,null,null,null,null,null,null,27,null,8,"火","○",null,1,"火_○","○_","○_1","火_○_","火_○_1"]
[null,null,null,null,null,null,null,null,null,null,null,28,null,9,"水",null,null,null,"水_","_","_","水__","水__"]
[null,null,null,null,null,null,null,null,null,null,null,29,null,10,"木","○",null,1,"木_○","○_","○_1","木_○_","木_○_1"]
[null,null,null,null,null,null,null,null,null,null,null,30,null,11,"金","○",1,null,"金_○","○_1","○_","金_○_1","金_○_"]
[null,null,null,null,null,null,null,null,null,null,null,31,null,14,"月",null,null,null,"月_","_","_","月__","月__"]
[null,null,null,null,null,null,null,null,null,null,null,32,null,15,"火","○",1,null,"火_○","○_1","○_","火_○_1","火_○_"]
[null,null,null,null,null,null,null,null,null,null,null,33,null,16,"水","○",1,null,"水_○","○_1","○_","水_○_1","水_○_"]
[null,null,null,null,null,null,null,null,null,null,null,34,null,17,"木","○",1,null,"木_○","○_1","○_","木_○_1","木_○_"]
[null,null,null,null,null,null,null,null,null,null,null,35,null,18,"金",null,null,null,"金_","_","_","金__","金__"]
[null,null,null,null,null,null,null,null,null,null,null,36,null,21,"月","○",1,null,"月_○","○_1","○_","月_○_1","月_○_"]
[null,null,null,null,null,null,null,null,null,null,null,37,null,22,"火","○",1,null,"火_○","○_1","○_","火_○_1","火_○_"]
[null,null,null,null,null,null,null,null,null,null,null,38,null,23,"水","○",null,1,"水_○","○_","○_1","水_○_","水_○_1"]
[null,null,null,null,null,null,null,null,null,null,null,39,null,24,"木","○",1,null,"木_○","○_1","○_","木_○_1","木_○_"]
[null,null,null,null,null,null,null,null,null,null,null,40,null,25,"金",null,null,null,"金_","_","_","金__","金__"]
[null,null,null,null,null,null,null,null,null,null,null,41,"1月",4,"月","○",null,1,"月_○","○_","○_1","月_○_","月_○_1"]
[null,null,null,null,null,null,null,null,null,null,null,42,null,5,"火","○",null,1,"火_○","○_","○_1","火_○_","火_○_1"]
[null,null,null,null,null,null,null,null,null,null,null,43,null,6,"水","○",1,null,"水_○","○_1","○_","水_○_1","水_○_"]
[null,null,null,null,null,null,null,null,null,null,null,44,null,7,"木","○",1,null,"木_○","○_1","○_","木_○_1","木_○_"]
[null,null,null,null,null,null,null,null,null,null,null,45,null,8,"金",null,null,null,"金_","_","_","金__","金__"]
[null,null,null,null,null,null,null,null,null,null,null,46,null,11,"月","×",1,null,"月_×","×_1","×_","月_×_1","月_×_"]
[null,null,null,null,null,null,null,null,null,null,null,47,null,12,"火","○",null,1,"火_○","○_","○_1","火_○_","火_○_1"]
[null,null,null,null,null,null,null,null,null,null,null,48,null,13,"水","×",1,null,"水_×","×_1","×_","水_×_1","水_×_"]
[null,null,null,null,null,null,null,null,null,null,null,49,null,14,"木","○",null,1,"木_○","○_","○_1","木_○_","木_○_1"]
[null,null,null,null,null,null,null,null,null,null,null,50,null,15,"金","×",1,null,"金_×","×_1","×_","金_×_1","金_×_"]
[null,null,null,null,null,null,null,null,null,null,null,51,null,18,"月",null,null,null,"月_","_","_","月__","月__"]
[null,null,null,null,null,null,null,null,null,null,null,52,null,19,"火","○",1,null,"火_○","○_1","○_","火_○_1","火_○_"]
[null,null,null,null,null,null,null,null,null,null,null,53,null,20,"水",null,null,null,"水_","_","_","水__","水__"]
[null,null,null,null,null,null,null,null,null,null,null,54,null,21,"木","×",1,null,"木_×","×_1","×_","木_×_1","木_×_"]
[null,null,null,null,null,null,null,null,null,null,null,55,null,22,"金",null,null,null,"金_","_","_","金__","金__"]
[null,null,null,null,null,null,null,null,null,null,null,56,null,25,"月","×",null,1,"月_×","×_","×_1","月_×_","月_×_1"]
[null,null,null,null,null,null,null,null,null,null,null,57,null,26,"火",null,null,null,"火_","_","_","火__","火__"]
[null,null,null,null,null,null,null,null,null,null,null,58,null,27,"水",null,null,null,"水_","_","_","水__","水__"]
[null,null,null,null,null,null,null,null,null,null,null,59,null,28,"木",null,null,null,"木_","_","_","木__","木__"]
[null,null,null,null,null,null,null,null,null,null,null,60,null,29,"金",null,null,null,"金_","_","_","金__","金__"]
[null,null,null,null,null,null,null,null,null,null,null,61,"2月",1,"月","○×",1,1,"月_○×","○×_1","○×_1","月_○×_1","月_○×_1"]
[null,null,null,null,null,null,null,null,null,null,null,62,null,2,"火",null,null,null,"火_","_","_","火__","火__"]
[null,null,null,null,null,null,null,null,null,null,null,63,null,3,"水","○",1,null,"水_○","○_1","○_","水_○_1","水_○_"]
[null,null,null,null,null,null,null,null,null,null,null,64,null,4,"木","○",null,1,"木_○","○_","○_1","木_○_","木_○_1"]
[null,null,null,null,null,null,null,null,null,null,null,65,null,5,"金",null,null,null,"金_","_","_","金__","金__"]
[null,null,null,null,null,null,null,null,null,null,null,66,null,8,"月","×",null,1,{"$f":"O71&\"_\"&P71","v":"月_×"},{"$f":"P71&\"_\"&Q71","v":"×_"},{"$f":"P71&\"_\"&R71","v":"×_1"},{"$f":"O71&\"_\"&P71&\"_\"&Q71","v":"月_×_"},{"$f":"O71&\"_\"&P71&\"_\"&R71","v":"月_×_1"}]
[null,null,null,null,null,null,null,null,null,null,null,67,null,9,"火","××",1,1,"火_××","××_1","××_1","火_××_1","火_××_1"]
[null,null,null,null,null,null,null,null,null,null,null,68,null,10,"水",null,null,null,"水_","_","_","水__","水__"]
[null,null,null,null,null,null,null,null,null,null,null,69,null,11,"木",null,null,null,"木_","_","_","木__","木__"]
[null,null,null,null,null,null,null,null,null,null,null,70,null,12,"金","×",1,null,"金_×","×_1","×_","金_×_1","金_×_"]
[null,null,null,null,null,null,null,null,null,null,null,71,null,15,"月",null,null,null,"月_","_","_","月__","月__"]
[null,null,null,null,null,null,null,null,null,null,null,72,null,16,"火",null,null,null,"火_","_","_","火__","火__"]
[null,null,null,null,null,null,null,null,null,null,null,73,null,17,"水","○",1,null,"水_○","○_1","○_","水_○_1","水_○_"]
[null,null,null,null,null,null,null,null,null,null,null,74,null,18,"木",null,null,null,"木_","_","_","木__","木__"]
[null,null,null,null,null,null,null,null,null,null,null,75,null,19,"金",null,null,null,"金_","_","_","金__","金__"]
[null,null,null,null,null,null,null,null,null,null,null,76,null,22,"月",null,null,null,"月_","_","_","月__","月__"]
[null,null,null,null,null,null,null,null,null,null,null,77,null,23,"火","○",null,1,"火_○","○_","○_1","火_○_","火_○_1"]
[null,null,null,null,null,null,null,null,null,null,null,78,null,24,"水",null,null,null,"水_","_","_","水__","水__"]
[null,null,null,null,null,null,null,null,null,null,null,79,null,25,"木","○",null,1,"木_○","○_","○_1","木_○_","木_○_1"]
[null,null,null,null,null,null,null,null,null,null,null,80,null,26,"金",null,null,null,"金_","_","_","金__","金__"]
[null,null,null,null,null,null,null,null,null,null,null,81,"３月",1,"月","×",1,null,"月_×","×_1","×_","月_×_1","月_×_"]
[null,null,null,null,null,null,null,null,null,null,null,82,null,2,"火","○",null,1,"火_○","○_","○_1","火_○_","火_○_1"]
[null,null,null,null,null,null,null,null,null,null,null,83,null,3,"水","○",null,1,"水_○","○_","○_1","水_○_","水_○_1"]
[null,null,null,null,null,null,null,null,null,null,null,84,null,4,"木","○",1,null,"木_○","○_1","○_","木_○_1","木_○_"]
[null,null,null,null,null,null,null,null,null,null,null,85,null,5,"金",null,null,null,"金_","_","_","金__","金__"]
[null,null,null,null,null,null,null,null,null,null,null,86,null,8,"月","不成立",null,null,"月_不成立","不成立_","不成立_","月_不成立_","月_不成立_"]
[null,null,null,null,null,null,null,null,null,null,null,87,null,9,"火","不成立",null,null,"火_不成立","不成立_","不成立_","火_不成立_","火_不成立_"]
[null,null,null,null,null,null,null,null,null,null,null,88,null,10,"水","○",1,null,"水_○","○_1","○_","水_○_1","水_○_"]
[null,null,null,null,null,null,null,null,null,null,null,89,null,11,"木","不成立",null,null,"木_不成立","不成立_","不成立_","木_不成立_","木_不成立_"]
[null,null,null,null,null,null,null,null,null,null,null,90,null,12,"金","○",1,null,"金_○","○_1","○_","金_○_1","金_○_"]
[null,null,null,null,null,null,null,null,null,null,null,91,null,15,"月","○×",null,null,"月_○×","○×_","○×_","月_○×_","月_○×_"]
[null,null,null,null,null,null,null,null,null,null,null,92,null,16,"火","×",1,null,"火_×","×_1","×_","火_×_1","火_×_"]
[null,null,null,null,null,null,null,null,null,null,null,93,null,17,"水","×",null,1,"水_×","×_","×_1","水_×_","水_×_1"]
[null,null,null,null,null,null,null,null,null,null,null,94,null,18,"木","○",1,null,"木_○","○_1","○_","木_○_1","木_○_"]
[null,null,null,null,null,null,null,null,null,null,null,95,null,19,"金",null,null,null,"金_","_","_","金__","金__"]
[null,null,null,null,null,null,null,null,null,null,null,96,null,22,"月",null,null,null,"月_","_","_","月__","月__"]
[null,null,null,null,null,null,null,null,null,null,null,97,null,23,"火",null,null,null,"火_","_","_","火__","火__"]
[null,null,null,null,null,null,null,null,null,null,null,98,null,24,"水",null,null,null,"水_","_","_","水__","水__"]
[null,null,null,null,null,null,null,null,null,null,null,99,null,25,"木",null,null,null,"木_","_","_","木__","木__"]
[null,null,null,null,null,null,null,null,null,null,null,100,null,26,"金",null,null,null,"金_","_","_","金__","金__"]
[null,null,null,null,null,null,null,null,null,null,null,101,null,29,"月",null,null,null,"月_","_","_","月__","月__"]
[null,null,null,null,null,null,null,null,null,null,null,102,null,30,"火",null,null,null,"火_","_","_","火__","火__"]
[null,null,null,null,null,null,null,null,null,null,null,103,null,31,"水",null,null,null,"水_","_","_","水__","水__"]
[null,null,null,null,null,null,null,null,null,null,null,104,"４月",1,"木",null,null,null,"木_","_","_","木__","木__"]
[null,null,null,null,null,null,null,null,null,null,null,105,null,2,"金",null,null,null,"金_","_","_","金__","金__"]
[null,null,null,null,null,null,null,null,null,null,null,106,null,5,"月",null,null,null,"月_","_","_","月__","月__"]
[null,null,null,null,null,null,null,null,null,null,null,107,null,6,"火",null,null,null,"火_","_","_","火__","火__"]
[null,null,null,null,null,null,null,null,null,null,null,108,null,7,"水",null,null,null,"水_","_","_","水__","水__"]
[null,null,null,null,null,null,null,null,null,null,null,109,null,8,"木",null,null,null,"木_","_","_","木__","木__"]
[null,null,null,null,null,null,null,null,null,null,null,110,null,9,"金",null,null,null,"金_","_","_","金__","金__"]
[null,null,null,null,null,null,null,null,null,null,null,111,null,12,"月",null,null,null,"月_","_","_","月__","月__"]
[null,null,null,null,null,null,null,null,null,null,null,112,null,13,"火",null,null,null,"火_","_","_","火__","火__"]
[null,null,null,null,null,null,null,null,null,null,null,113,null,14,"水",null,null,null,"水_","_","_","水__","水__"]
[null,null,null,null,null,null,null,null,null,null,null,114,null,15,"木",null,null,null,"木_","_","_","木__","木__"]
[null,null,null,null,null,null,null,null,null,null,null,115,null,16,"金",null,null,null,"金_","_","_","金__","金__"]
[null,null,null,null,null,null,null,null,null,null,null,116,null,19,"月",null,null,null,"月_","_","_","月__","月__"]
[null,null,null,null,null,null,null,null,null,null,null,117,null,20,"火",null,null,null,"火_","_","_","火__","火__"]
[null,null,null,null,null,null,null,null,null,null,null,118,null,21,"水",null,null,null,"水_","_","_","水__","水__"]
[null,null,null,null,null,null,null,null,null,null,null,119,null,22,"木",null,null,null,"木_","_","_","木__","木__"]
[null,null,null,null,null,null,null,null,null,null,null,120,null,23,"金",null,null,null,"金_","_","_","金__","金__"]
[null,null,null,null,null,null,null,null,null,null,null,121,null,26,"月",null,null,null,"月_","_","_","月__","月__"]
[null,null,null,null,null,null,null,null,null,null,null,122,null,27,"火",null,null,null,"火_","_","_","火__","火__"]
[null,null,null,null,null,null,null,null,null,null,null,123,null,28,"水",null,null,null,"水_","_","_","水__","水__"]
[null,null,null,null,null,null,null,null,null,null,null,124,null,29,"木",null,null,null,"木_","_","_","木__","木__"]
[null,null,null,null,null,null,null,null,null,null,null,125,null,30,"金",null,null,null,"金_","_","_","金__","金__"]
[null,null,null,null,null,null,null,null,null,null,null,126,"５月",3,"月",null,null,null,"月_","_","_","月__","月__"]
[null,null,null,null,null,null,null,null,null,null,null,127,null,4,"火",null,null,null,"火_","_","_","火__","火__"]
[null,null,null,null,null,null,null,null,null,null,null,128,null,5,"水",null,null,null,"水_","_","_","水__","水__"]
[null,null,null,null,null,null,null,null,null,null,null,129,null,6,"木",null,null,null,"木_","_","_","木__","木__"]
[null,null,null,null,null,null,null,null,null,null,null,130,null,7,"金",null,null,null,{"$f":"O135&\"_\"&P135","v":"金_"},{"$f":"P135&\"_\"&Q135","v":"_"},{"$f":"P135&\"_\"&R135","v":"_"},{"$f":"O135&\"_\"&P135&\"_\"&Q135","v":"金__"},{"$f":"O135&\"_\"&P135&\"_\"&R135","v":"金__"}]
[null,null,null,null,null,null,null,null,null,null,null,131,null,10,"月",null,null,null,"月_","_","_","月__","月__"]
[null,null,null,null,null,null,null,null,null,null,null,132,null,11,"火",null,null,null,"火_","_","_","火__","火__"]
[null,null,null,null,null,null,null,null,null,null,null,133,null,12,"水",null,null,null,"水_","_","_","水__","水__"]
[null,null,null,null,null,null,null,null,null,null,null,134,null,13,"木",null,null,null,"木_","_","_","木__","木__"]
[null,null,null,null,null,null,null,null,null,null,null,135,null,14,"金",null,null,null,"金_","_","_","金__","金__"]
[null,null,null,null,null,null,null,null,null,null,null,136,null,17,"月",null,null,null,"月_","_","_","月__","月__"]
[null,null,null,null,null,null,null,null,null,null,null,137,null,18,"火",null,null,null,"火_","_","_","火__","火__"]
[null,null,null,null,null,null,null,null,null,null,null,138,null,19,"水",null,null,null,"水_","_","_","水__","水__"]
[null,null,null,null,null,null,null,null,null,null,null,139,null,20,"木",null,null,null,"木_","_","_","木__","木__"]
[null,null,null,null,null,null,null,null,null,null,null,140,null,21,"金",null,null,null,"金_","_","_","金__","金__"]
[null,null,null,null,null,null,null,null,null,null,null,141,null,24,"月",null,null,null,"月_","_","_","月__","月__"]
[null,null,null,null,null,null,null,null,null,null,null,142,null,25,"火",null,null,null,"火_","_","_","火__","火__"]
[null,null,null,null,null,null,null,null,null,null,null,143,null,26,"水",null,null,null,"水_","_","_","水__","水__"]
[null,null,null,null,null,null,null,null,null,null,null,144,null,27,"木",null,null,null,"木_","_","_","木__","木__"]
[null,null,null,null,null,null,null,null,null,null,null,145,null,28,"金",null,null,null,"金_","_","_","金__","金__"]
[null,null,null,null,null,null,null,null,null,null,null,146,null,31,"月",null,null,null,"月_","_","_","月__","月__"]
[null,null,null,null,null,null,null,null,null,null,null,147,"６月",1,"火",null,null,null,"火_","_","_","火__","火__"]
[null,null,null,null,null,null,null,null,null,null,null,148,null,2,"水",null,null,null,"水_","_","_","水__","水__"]
[null,null,null,null,null,null,null,null,null,null,null,149,null,3,"木",null,null,null,"木_","_","_","木__","木__"]
[null,null,null,null,null,null,null,null,null,null,null,150,null,4,"金",null,null,null,"金_","_","_","金__","金__"]
[null,null,null,null,null,null,null,null,null,null,null,151,null,7,"月",null,null,null,"月_","_","_","月__","月__"]
[null,null,null,null,null,null,null,null,null,null,null,152,null,8,"火",null,null,null,"火_","_","_","火__","火__"]
[null,null,null,null,null,null,null,null,null,null,null,153,null,9,"水",null,null,null,"水_","_","_","水__","水__"]
[null,null,null,null,null,null,null,null,null,null,null,154,null,10,"木",null,null,null,"木_","_","_","木__","木__"]
[null,null,null,null,null,null,null,null,null,null,null,155,null,11,"金",null,null,null,"金_","_","_","金__","金__"]
[null,null,null,null,null,null,null,null,null,null,null,156,null,14,"月",null,null,null,"月_","_","_","月__","月__"]
[null,null,null,null,null,null,null,null,null,null,null,157,null,15,"火",null,null,null,"火_","_","_","火__","火__"]
[null,null,null,null,null,null,null,null,null,null,null,158,null,16,"水",null,null,null,"水_","_","_","水__","水__"]
[null,null,null,null,null,null,null,null,null,null,null,159,null,17,"木",null,null,null,"木_","_","_","木__","木__"]
[null,null,null,null,null,null,null,null,null,null,null,160,null,18,"金",null,null,null,"金_","_","_","金__","金__"]
[null,null,null,null,null,null,null,null,null,null,null,161,null,21,"月",null,null,null,"月_","_","_","月__","月__"]
[null,null,null,null,null,null,null,null,null,null,null,162,null,22,"火",null,null,null,"火_","_","_","火__","火__"]
[null,null,null,null,null,null,null,null,null,null,null,163,null,23,"水",null,null,null,"水_","_","_","水__","水__"]
[null,null,null,null,null,null,null,null,null,null,null,164,null,24,"木",null,null,null,"木_","_","_","木__","木__"]
[null,null,null,null,null,null,null,null,null,null,null,165,null,25,"金",null,null,null,"金_","_","_","金__","金__"]
[null,null,null,null,null,null,null,null,null,null,null,166,null,28,"月",null,null,null,"月_","_","_","月__","月__"]
[null,null,null,null,null,null,null,null,null,null,null,167,null,29,"火",null,null,null,"火_","_","_","火__","火__"]
[null,null,null,null,null,null,null,null,null,null,null,168,null,30,"水",null,null,null,"水_","_","_","水__","水__"]
[null,null,null,null,null,null,null,null,null,null,null,169,"7月",1,"木",null,null,null,"木_","_","_","木__","木__"]
[null,null,null,null,null,null,null,null,null,null,null,170,null,2,"金",null,null,null,"金_","_","_","金__","金__"]
[null,null,null,null,null,null,null,null,null,null,null,171,null,5,"月",null,null,null,"月_","_","_","月__","月__"]
[null,null,null,null,null,null,null,null,null,null,null,172,null,6,"火",null,null,null,"火_","_","_","火__","火__"]
[null,null,null,null,null,null,null,null,null,null,null,173,null,7,"水",null,null,null,"水_","_","_","水__","水__"]
[null,null,null,null,null,null,null,null,null,null,null,174,null,8,"木",null,null,null,"木_","_","_","木__","木__"]
[null,null,null,null,null,null,null,null,null,null,null,175,null,9,"金",null,null,null,"金_","_","_","金__","金__"]
[null,null,null,null,null,null,null,null,null,null,null,176,null,12,"月",null,null,null,"月_","_","_","月__","月__"]
[null,null,null,null,null,null,null,null,null,null,null,177,null,13,"火",null,null,null,"火_","_","_","火__","火__"]
[null,null,null,null,null,null,null,null,null,null,null,178,null,14,"水",null,null,null,"水_","_","_","水__","水__"]
[null,null,null,null,null,null,null,null,null,null,null,179,null,15,"木",null,null,null,"木_","_","_","木__","木__"]
[null,null,null,null,null,null,null,null,null,null,null,180,null,16,"金",null,null,null,"金_","_","_","金__","金__"]
[null,null,null,null,null,null,null,null,null,null,null,181,null,19,"月",null,null,null,"月_","_","_","月__","月__"]
[null,null,null,null,null,null,null,null,null,null,null,182,null,20,"火",null,null,null,"火_","_","_","火__","火__"]
[null,null,null,null,null,null,null,null,null,null,null,183,null,21,"水",null,null,null,"水_","_","_","水__","水__"]
[null,null,null,null,null,null,null,null,null,null,null,184,null,22,"木",null,null,null,"木_","_","_","木__","木__"]
[null,null,null,null,null,null,null,null,null,null,null,185,null,23,"金",null,null,null,"金_","_","_","金__","金__"]
[null,null,null,null,null,null,null,null,null,null,null,186,null,26,"月",null,null,null,"月_","_","_","月__","月__"]
[null,null,null,null,null,null,null,null,null,null,null,187,null,27,"火",null,null,null,"火_","_","_","火__","火__"]
[null,null,null,null,null,null,null,null,null,null,null,188,null,28,"水",null,null,null,"水_","_","_","水__","水__"]
[null,null,null,null,null,null,null,null,null,null,null,189,null,29,"木",null,null,null,"木_","_","_","木__","木__"]
[null,null,null,null,null,null,null,null,null,null,null,190,null,30,"金",null,null,null,"金_","_","_","金__","金__"]
[null,null,null,null,null,null,null,null,null,null,null,191,"8月",2,"月",null,null,null,"月_","_","_","月__","月__"]
[null,null,null,null,null,null,null,null,null,null,null,192,null,3,"火",null,null,null,"火_","_","_","火__","火__"]
[null,null,null,null,null,null,null,null,null,null,null,193,null,4,"水",null,null,null,"水_","_","_","水__","水__"]
[null,null,null,null,null,null,null,null,null,null,null,194,null,5,"木",null,null,null,{"$f":"O199&\"_\"&P199","v":"木_"},{"$f":"P199&\"_\"&Q199","v":"_"},{"$f":"P199&\"_\"&R199","v":"_"},{"$f":"O199&\"_\"&P199&\"_\"&Q199","v":"木__"},{"$f":"O199&\"_\"&P199&\"_\"&R199","v":"木__"}]
[null,null,null,null,null,null,null,null,null,null,null,195,null,6,"金",null,null,null,"金_","_","_","金__","金__"]
[null,null,null,null,null,null,null,null,null,null,null,196,null,9,"月",null,null,null,"月_","_","_","月__","月__"]
[null,null,null,null,null,null,null,null,null,null,null,197,null,10,"火",null,null,null,"火_","_","_","火__","火__"]
[null,null,null,null,null,null,null,null,null,null,null,198,null,11,"水",null,null,null,"水_","_","_","水__","水__"]
[null,null,null,null,null,null,null,null,null,null,null,199,null,12,"木",null,null,null,"木_","_","_","木__","木__"]
[null,null,null,null,null,null,null,null,null,null,null,200,null,13,"金",null,null,null,"金_","_","_","金__","金__"]
[null,null,null,null,null,null,null,null,null,null,null,201,null,16,"月",null,null,null,"月_","_","_","月__","月__"]
[null,null,null,null,null,null,null,null,null,null,null,202,null,17,"火",null,null,null,"火_","_","_","火__","火__"]
[null,null,null,null,null,null,null,null,null,null,null,203,null,18,"水",null,null,null,"水_","_","_","水__","水__"]
[null,null,null,null,null,null,null,null,null,null,null,204,null,19,"木",null,null,null,"木_","_","_","木__","木__"]
[null,null,null,null,null,null,null,null,null,null,null,205,null,20,"金",null,null,null,"金_","_","_","金__","金__"]
[null,null,null,null,null,null,null,null,null,null,null,206,null,23,"月",null,null,null,"月_","_","_","月__","月__"]
[null,null,null,null,null,null,null,null,null,null,null,207,null,24,"火",null,null,null,"火_","_","_","火__","火__"]
[null,null,null,null,null,null,null,null,null,null,null,208,null,25,"水",null,null,null,"水_","_","_","水__","水__"]
[null,null,null,null,null,null,null,null,null,null,null,209,null,26,"木",null,null,null,"木_","_","_","木__","木__"]
[null,null,null,null,null,null,null,null,null,null,null,210,null,27,"金",null,null,null,"金_","_","_","金__","金__"]
[null,null,null,null,null,null,null,null,null,null,null,211,null,30,"月",null,null,null,"月_","_","_","月__","月__"]
[null,null,null,null,null,null,null,null,null,null,null,212,null,31,"火",null,null,null,"火_","_","_","火__","火__"]
[null,null,null,null,null,null,null,null,null,null,null,213,"9月",1,"水",null,null,null,"水_","_","_","水__","水__"]
[null,null,null,null,null,null,null,null,null,null,null,214,null,2,"木",null,null,null,"木_","_","_","木__","木__"]
[null,null,null,null,null,null,null,null,null,null,null,215,null,3,"金",null,null,null,"金_","_","_","金__","金__"]
[null,null,null,null,null,null,null,null,null,null,null,216,null,6,"月",null,null,null,"月_","_","_","月__","月__"]
[null,null,null,null,null,null,null,null,null,null,null,217,null,7,"火",null,null,null,"火_","_","_","火__","火__"]
[null,null,null,null,null,null,null,null,null,null,null,218,null,8,"水",null,null,null,"水_","_","_","水__","水__"]
[null,null,null,null,null,null,null,null,null,null,null,219,null,9,"木",null,null,null,"木_","_","_","木__","木__"]
[null,null,null,null,null,null,null,null,null,null,null,220,null,10,"金",null,null,null,"金_","_","_","金__","金__"]
[null,null,null,null,null,null,null,null,null,null,null,221,null,13,"月",null,null,null,"月_","_","_","月__","月__"]
[null,null,null,null,null,null,null,null,null,null,null,222,null,14,"火",null,null,null,"火_","_","_","火__","火__"]
[null,null,null,null,null,null,null,null,null,null,null,223,null,15,"水",null,null,null,"水_","_","_","水__","水__"]
[null,null,null,null,null,null,null,null,null,null,null,224,null,16,"木",null,null,null,"木_","_","_","木__","木__"]
[null,null,null,null,null,null,null,null,null,null,null,225,null,17,"金",null,null,null,"金_","_","_","金__","金__"]
[null,null,null,null,null,null,null,null,null,null,null,226,null,20,"月",null,null,null,"月_","_","_","月__","月__"]
[null,null,null,null,null,null,null,null,null,null,null,227,null,21,"火",null,null,null,"火_","_","_","火__","火__"]
[null,null,null,null,null,null,null,null,null,null,null,228,null,22,"水",null,null,null,"水_","_","_","水__","水__"]
[null,null,null,null,null,null,null,null,null,null,null,229,null,23,"木",null,null,null,"木_","_","_","木__","木__"]
[null,null,null,null,null,null,null,null,null,null,null,230,null,24,"金",null,null,null,"金_","_","_","金__","金__"]
[null,null,null,null,null,null,null,null,null,null,null,231,null,27,"月",null,null,null,"月_","_","_","月__","月__"]
[null,null,null,null,null,null,null,null,null,null,null,232,null,28,"火",null,null,null,"火_","_","_","火__","火__"]
[null,null,null,null,null,null,null,null,null,null,null,233,null,29,"水",null,null,null,"水_","_","_","水__","水__"]
[null,null,null,null,null,null,null,null,null,null,null,234,null,30,"木",null,null,null,"木_","_","_","木__","木__"]
[null,null,null,null,null,null,null,null,null,null,null,235,null,null,null,null,null,null,"_","_","_","__","__"]
[null,null,null,null,null,null,null,null,null,null,null,236,null,null,null,null,null,null,"_","_","_","__","__"]
[null,null,null,null,null,null,null,null,null,null,null,237,null,null,null,null,null,null,"_","_","_","__","__"]
[null,null,null,null,null,null,null,null,null,null,null,238,null,null,null,null,null,null,"_","_","_","__","__"]
[null,null,null,null,null,null,null,null,null,null,null,239,null,null,null,null,null,null,"_","_","_","__","__"]
[null,null,null,null,null,null,null,null,null,null,null,240,null,null,null,null,null,null,"_","_","_","__","__"]
[null,null,null,null,null,null,null,null,null,null,null,241,null,null,null,null,null,null,"_","_","_","__","__"]
[null,null,null,null,null,null,null,null,null,null,null,242,null,null,null,null,null,null,"_","_","_","__","__"]
[null,null,null,null,null,null,null,null,null,null,null,243,null,null,null,null,null,null,"_","_","_","__","__"]
[null,null,null,null,null,null,null,null,null,null,null,244,null,null,null,null,null,null,"_","_","_","__","__"]
[null,null,null,null,null,null,null,null,null,null,null,245,null,null,null,null,null,null,"_","_","_","__","__"]
[null,null,null,null,null,null,null,null,null,null,null,246,null,null,null,null,null,null,"_","_","_","__","__"]
[null,null,null,null,null,null,null,null,null,null,null,247,null,null,null,null,null,null,"_","_","_","__","__"]
[null,null,null,null,null,null,null,null,null,null,null,248,null,null,null,null,null,null,"_","_","_","__","__"]
[null,null,null,null,null,null,null,null,null,null,null,249,null,null,null,null,null,null,"_","_","_","__","__"]
[null,null,null,null,null,null,null,null,null,null,null,250,null,null,null,null,null,null,"_","_","_","__","__"]
[null,null,null,null,null,null,null,null,null,null,null,251,null,null,null,null,null,null,"_","_","_","__","__"]
[null,null,null,null,null,null,null,null,null,null,null,252,null,null,null,null,null,null,"_","_","_","__","__"]
[null,null,null,null,null,null,null,null,null,null,null,253,null,null,null,null,null,null,"_","_","_","__","__"]
[null,null,null,null,null,null,null,null,null,null,null,254,null,null,null,null,null,null,"_","_","_","__","__"]
[null,null,null,null,null,null,null,null,null,null,null,255,null,null,null,null,null,null,"_","_","_","__","__"]
[null,null,null,null,null,null,null,null,null,null,null,256,null,null,null,null,null,null,"_","_","_","__","__"]
[null,null,null,null,null,null,null,null,null,null,null,257,null,null,null,null,null,null,"_","_","_","__","__"]
[null,null,null,null,null,null,null,null,null,null,null,258,null,null,null,null,null,null,{"$f":"O263&\"_\"&P263","v":"_"},{"$f":"P263&\"_\"&Q263","v":"_"},{"$f":"P263&\"_\"&R263","v":"_"},{"$f":"O263&\"_\"&P263&\"_\"&Q263","v":"__"},{"$f":"O263&\"_\"&P263&\"_\"&R263","v":"__"}]
[null,null,null,null,null,null,null,null,null,null,null,259,null,null,null,null,null,null,"_","_","_","__","__"]
[null,null,null,null,null,null,null,null,null,null,null,260,null,null,null,null,null,null,"_","_","_","__","__"]
[null,null,null,null,null,null,null,null,null,null,null,261,null,null,null,null,null,null,"_","_","_","__","__"]
[null,null,null,null,null,null,null,null,null,null,null,262,null,null,null,null,null,null,"_","_","_","__","__"]
[null,null,null,null,null,null,null,null,null,null,null,263,null,null,null,null,null,null,"_","_","_","__","__"]
[null,null,null,null,null,null,null,null,null,null,null,264,null,null,null,null,null,null,"_","_","_","__","__"]
[null,null,null,null,null,null,null,null,null,null,null,265,null,null,null,null,null,null,"_","_","_","__","__"]
[null,null,null,null,null,null,null,null,null,null,null,266,null,null,null,null,null,null,"_","_","_","__","__"]
[null,null,null,null,null,null,null,null,null,null,null,267,null,null,null,null,null,null,"_","_","_","__","__"]
[null,null,null,null,null,null,null,null,null,null,null,268,null,null,null,null,null,null,"_","_","_","__","__"]
[null,null,null,null,null,null,null,null,null,null,null,269,null,null,null,null,null,null,"_","_","_","__","__"]
[null,null,null,null,null,null,null,null,null,null,null,270,null,null,null,null,null,null,"_","_","_","__","__"]
[null,null,null,null,null,null,null,null,null,null,null,271,null,null,null,null,null,null,"_","_","_","__","__"]
[null,null,null,null,null,null,null,null,null,null,null,272,null,null,null,null,null,null,"_","_","_","__","__"]
[null,null,null,null,null,null,null,null,null,null,null,273,null,null,null,null,null,null,"_","_","_","__","__"]
[null,null,null,null,null,null,null,null,null,null,null,274,null,null,null,null,null,null,"_","_","_","__","__"]
[null,null,null,null,null,null,null,null,null,null,null,275,null,null,null,null,null,null,"_","_","_","__","__"]
[null,null,null,null,null,null,null,null,null,null,null,276,null,null,null,null,null,null,"_","_","_","__","__"]
[null,null,null,null,null,null,null,null,null,null,null,277,null,null,null,null,null,null,"_","_","_","__","__"]
[null,null,null,null,null,null,null,null,null,null,null,278,null,null,null,null,null,null,"_","_","_","__","__"]
[null,null,null,null,null,null,null,null,null,null,null,279,null,null,null,null,null,null,"_","_","_","__","__"]
[null,null,null,null,null,null,null,null,null,null,null,280,null,null,null,null,null,null,"_","_","_","__","__"]
[null,null,null,null,null,null,null,null,null,null,null,281,null,null,null,null,null,null,"_","_","_","__","__"]
[null,null,null,null,null,null,null,null,null,null,null,282,null,null,null,null,null,null,"_","_","_","__","__"]
[null,null,null,null,null,null,null,null,null,null,null,283,null,null,null,null,null,null,"_","_","_","__","__"]
[null,null,null,null,null,null,null,null,null,null,null,284,null,null,null,null,null,null,"_","_","_","__","__"]
[null,null,null,null,null,null,null,null,null,null,null,285,null,null,null,null,null,null,"_","_","_","__","__"]
[null,null,null,null,null,null,null,null,null,null,null,286,null,null,null,null,null,null,"_","_","_","__","__"]
[null,null,null,null,null,null,null,null,null,null,null,287,null,null,null,null,null,null,"_","_","_","__","__"]
[null,null,null,null,null,null,null,null,null,null,null,288,null,null,null,null,null,null,"_","_","_","__","__"]
[null,null,null,null,null,null,null,null,null,null,null,289,null,null,null,null,null,null,"_","_","_","__","__"]
[null,null,null,null,null,null,null,null,null,null,null,290,null,null,null,null,null,null,"_","_","_","__","__"]
[null,null,null,null,null,null,null,null,null,null,null,291,null,null,null,null,null,null,"_","_","_","__","__"]
[null,null,null,null,null,null,null,null,null,null,null,292,null,null,null,null,null,null,"_","_","_","__","__"]
[null,null,null,null,null,null,null,null,null,null,null,293,null,null,null,null,null,null,"_","_","_","__","__"]
[null,null,null,null,null,null,null,null,null,null,null,294,null,null,null,null,null,null,"_","_","_","__","__"]
[null,null,null,null,null,null,null,null,null,null,null,295,null,null,null,null,null,null,"_","_","_","__","__"]

{"sheet":"Sheet2","index":1,"n_rows":0,"n_cols":0,"rows_kept":0,"cut":false,"hidden":false,"merged":[]}

{"sheet":"Sheet3","index":2,"n_rows":0,"n_cols":0,"rows_kept":0,"cut":false,"hidden":false,"merged":[]}